[Event "Titled Tuesday Blitz June 6 Early 2023"]
[White "Kleiman, Jake"]
[Black "Svane, Frederik"]
[WhiteFideId "2020041"]
[BlackFideId "12923044"]
[WhiteElo "2700"]
[BlackElo "2502"]
[Result "0-1"]
[Round "9"]
[TimeControl "180+2"]
[Date "2023.06.06"]
[WhiteClock "0:00:02"]
[BlackClock "0:00:02"]
[Board "18"]

1. e4 {[%clk 0:03:00]}  e5 {[%clk 0:02:25]} 2. Nf3 {[%clk 0:03:00]}  Nc6 {[%clk 0:02:25]} 3. Bc4 {[%clk 0:03:01]}  Nf6 {[%clk 0:02:25]} 4. d3 {[%clk 0:03:01]}  Bc5 {[%clk 0:02:25]} 5. c3 {[%clk 0:03:01]}  d6 {[%clk 0:02:24]} 6. Bb3 {[%clk 0:03:02]}  O-O {[%clk 0:02:18]} 7. O-O {[%clk 0:03:01]}  a5 {[%clk 0:01:57]} 8. h3 {[%clk 0:03:01]}  Be6 {[%clk 0:01:51]} 9. Bc2 {[%clk 0:03:01]}  Ba7 {[%clk 0:01:51]} 10. Re1 {[%clk 0:02:59]}  Ne7 {[%clk 0:01:49]} 11. Nbd2 {[%clk 0:02:58]}  Ng6 {[%clk 0:01:49]} 12. Nf1 {[%clk 0:02:59]}  Nh5 {[%clk 0:01:23]} 13. d4 {[%clk 0:02:50]}  Nhf4 {[%clk 0:01:22]} 14. Ng3 {[%clk 0:02:50]}  Qc8 {[%clk 0:01:22]} 15. Nf5 {[%clk 0:02:32]}  Re8 {[%clk 0:00:31]} 16. g3 {[%clk 0:02:27]}  Nxh3+ {[%clk 0:00:21]} 17. Kg2 {[%clk 0:02:27]}  d5 {[%clk 0:00:22]} 18. N3h4 {[%clk 0:01:09]}  dxe4 {[%clk 0:00:12]} 19. Bxe4 {[%clk 0:01:09]}  exd4 {[%clk 0:00:11]} 20. cxd4 {[%clk 0:01:02]}  Nxh4+ {[%clk 0:00:06]} 21. Nxh4 {[%clk 0:01:02]}  Qd7 {[%clk 0:00:07]} 22. Nf3 {[%clk 0:00:30]}  c6 {[%clk 0:00:04]} 23. Qd3 {[%clk 0:00:25]}  h6 {[%clk 0:00:04]} 24. Qc2 {[%clk 0:00:16]}  Rad8 {[%clk 0:00:04]} 25. Be3 {[%clk 0:00:16]}  Bb8 {[%clk 0:00:02]} 26. Rad1 {[%clk 0:00:15]}  f5 {[%clk 0:00:02]} 27. Ne5 {[%clk 0:00:11]}  Bxe5 {[%clk 0:00:01]} 28. dxe5 {[%clk 0:00:11]}  Qf7 {[%clk 0:00:02]} 29. Bf3 {[%clk 0:00:11]}  f4 {[%clk 0:00:02]} 30. Bb6 {[%clk 0:00:07]}  Rxd1 {[%clk 0:00:02]} 31. Rxd1 {[%clk 0:00:07]}  fxg3 {[%clk 0:00:03]} 32. fxg3 {[%clk 0:00:07]}  Ng5 {[%clk 0:00:03]} 33. Be2 {[%clk 0:00:02]}  Bd5+ {[%clk 0:00:03]} 34. Kh2 {[%clk 0:00:02]}  Nf3+ {[%clk 0:00:02]} 35. Bxf3 {[%clk 0:00:02]}  Qxf3 {[%clk 0:00:03]} 36. Qf2 {[%clk 0:00:01]}  Qh5+ {[%clk 0:00:03]} 37. Kg1 {[%clk 0:00:02]}  Qh1# {[%clk 0:00:02]} 0-1


[Site "https://www.chess.com"]

[Event "Titled Tuesday Blitz June 6 Early 2023"]
[White "Pranav Anand"]
[Black "Wagner, Dennis"]
[WhiteFideId "46626786"]
[BlackFideId "24650684"]
[WhiteElo "2389"]
[BlackElo "2478"]
[Result "1-0"]
[Round "9"]
[TimeControl "180+2"]
[Date "2023.06.06"]
[WhiteClock "0:00:18"]
[BlackClock "0:00:02"]
[Board "19"]

1. d4 {[%clk 0:02:53]}  Nf6 {[%clk 0:02:59]} 2. c4 {[%clk 0:02:54]}  e6 {[%clk 0:02:59]} 3. Nc3 {[%clk 0:02:54]}  Bb4 {[%clk 0:02:56]} 4. e3 {[%clk 0:02:55]}  O-O {[%clk 0:02:55]} 5. Bd3 {[%clk 0:02:55]}  d5 {[%clk 0:02:54]} 6. cxd5 {[%clk 0:02:56]}  exd5 {[%clk 0:02:53]} 7. a3 {[%clk 0:02:57]}  Bd6 {[%clk 0:02:49]} 8. Qc2 {[%clk 0:02:57]}  Na6 {[%clk 0:02:44]} 9. b4 {[%clk 0:02:55]}  c6 {[%clk 0:02:43]} 10. Nf3 {[%clk 0:02:53]}  Nc7 {[%clk 0:02:42]} 11. Bb2 {[%clk 0:02:53]}  Re8 {[%clk 0:02:39]} 12. h3 {[%clk 0:02:52]}  b5 {[%clk 0:02:28]} 13. Ne5 {[%clk 0:02:47]}  Bb7 {[%clk 0:02:14]} 14. Ne2 {[%clk 0:02:47]}  a5 {[%clk 0:02:08]} 15. bxa5 {[%clk 0:02:40]}  c5 {[%clk 0:01:52]} 16. O-O {[%clk 0:02:39]}  c4 {[%clk 0:01:50]} 17. Bf5 {[%clk 0:02:39]}  Rxa5 {[%clk 0:01:45]} 18. h4 {[%clk 0:02:13]}  Qa8 {[%clk 0:01:34]} 19. Qc1 {[%clk 0:01:39]}  g6 {[%clk 0:00:52]} 20. Bh3 {[%clk 0:01:39]}  Bc8 {[%clk 0:00:48]} 21. Nf4 {[%clk 0:01:26]}  Bxh3 {[%clk 0:00:47]} 22. Nxh3 {[%clk 0:01:27]}  Ne4 {[%clk 0:00:43]} 23. h5 {[%clk 0:01:16]}  f6 {[%clk 0:00:42]} 24. Ng4 {[%clk 0:01:12]}  gxh5 {[%clk 0:00:33]} 25. Nh6+ {[%clk 0:01:12]}  Kf8 {[%clk 0:00:32]} 26. Nf5 {[%clk 0:01:12]}  Qc8 {[%clk 0:00:26]} 27. Nxd6 {[%clk 0:01:11]}  Nxd6 {[%clk 0:00:27]} 28. Bc3 {[%clk 0:01:12]}  Ra6 {[%clk 0:00:27]} 29. Bb4 {[%clk 0:01:13]}  Kf7 {[%clk 0:00:22]} 30. f3 {[%clk 0:01:13]}  Rg8 {[%clk 0:00:20]} 31. Kh2 {[%clk 0:01:12]}  Qf5 {[%clk 0:00:19]} 32. Qd2 {[%clk 0:01:07]}  Ne6 {[%clk 0:00:18]} 33. Rae1 {[%clk 0:01:05]}  Qg6 {[%clk 0:00:16]} 34. Qf2 {[%clk 0:01:01]}  Nf5 {[%clk 0:00:17]} 35. Rb1 {[%clk 0:00:43]}  h4 {[%clk 0:00:13]} 36. Rfe1 {[%clk 0:00:41]}  Qg3+ {[%clk 0:00:13]} 37. Qxg3 {[%clk 0:00:41]}  hxg3+ {[%clk 0:00:13]} 38. Kg1 {[%clk 0:00:42]}  Rc8 {[%clk 0:00:09]} 39. Kf1 {[%clk 0:00:40]}  c3 {[%clk 0:00:10]} 40. Ke2 {[%clk 0:00:39]}  c2 {[%clk 0:00:10]} 41. Rbc1 {[%clk 0:00:40]}  Nexd4+ {[%clk 0:00:06]} 42. exd4 {[%clk 0:00:38]}  Re6+ {[%clk 0:00:05]} 43. Kd3 {[%clk 0:00:37]}  Rxe1 {[%clk 0:00:05]} 44. Bxe1 {[%clk 0:00:38]}  Rc4 {[%clk 0:00:04]} 45. Bc3 {[%clk 0:00:37]}  Ne3 {[%clk 0:00:04]} 46. Nf4 {[%clk 0:00:32]}  Nd1 {[%clk 0:00:03]} 47. Rxc2 {[%clk 0:00:31]}  Nf2+ {[%clk 0:00:02]} 48. Kd2 {[%clk 0:00:28]}  Ra4 {[%clk 0:00:02]} 49. Bb4 {[%clk 0:00:27]}  Ra7 {[%clk 0:00:03]} 50. Nxd5 {[%clk 0:00:26]}  Ke6 {[%clk 0:00:02]} 51. Nc7+ {[%clk 0:00:25]}  Kf5 {[%clk 0:00:02]} 52. Nxb5 {[%clk 0:00:24]}  Rd7 {[%clk 0:00:02]} 53. Rc7 {[%clk 0:00:21]}  Rxc7 {[%clk 0:00:01]} 54. Nxc7 {[%clk 0:00:22]}  h5 {[%clk 0:00:01]} 55. d5 {[%clk 0:00:21]}  h4 {[%clk 0:00:02]} 56. d6 {[%clk 0:00:21]}  h3 {[%clk 0:00:02]} 57. d7 {[%clk 0:00:21]}  hxg2 {[%clk 0:00:02]} 58. d8=Q {[%clk 0:00:22]}  g1=Q {[%clk 0:00:02]} 59. Qd5+ {[%clk 0:00:23]}  Kg6 {[%clk 0:00:03]} 60. Qg8+ {[%clk 0:00:21]}  Kf5 {[%clk 0:00:03]} 61. Qh7+ {[%clk 0:00:18]}  Kg5 {[%clk 0:00:02]} 62. Ne6# {[%clk 0:00:18]} 1-0


[Site "https://www.chess.com"]

[Event "Titled Tuesday Blitz June 6 Early 2023"]
[White "Elsa167"]
[Black "Souleidis, Georgios"]
[BlackFideId "4206827"]
[WhiteElo "2902"]
[BlackElo "2401"]
[Result "1-0"]
[Round "9"]
[TimeControl "180+2"]
[Date "2023.06.06"]
[WhiteClock "0:00:07"]
[BlackClock "0:00:03"]
[Board "21"]

1. d4 {[%clk 0:03:00]}  Nf6 {[%clk 0:02:59]} 2. c4 {[%clk 0:03:01]}  g6 {[%clk 0:03:00]} 3. Nc3 {[%clk 0:03:02]}  Bg7 {[%clk 0:03:01]} 4. e4 {[%clk 0:03:02]}  d6 {[%clk 0:03:01]} 5. h3 {[%clk 0:03:02]}  O-O {[%clk 0:03:02]} 6. Be3 {[%clk 0:03:03]}  e5 {[%clk 0:03:02]} 7. d5 {[%clk 0:03:04]}  Na6 {[%clk 0:03:00]} 8. g4 {[%clk 0:03:03]}  Nc5 {[%clk 0:03:01]} 9. f3 {[%clk 0:03:04]}  h5 {[%clk 0:03:01]} 10. Qd2 {[%clk 0:03:04]}  a5 {[%clk 0:02:57]} 11. O-O-O {[%clk 0:02:58]}  a4 {[%clk 0:02:56]} 12. Kb1 {[%clk 0:02:58]}  Bd7 {[%clk 0:02:56]} 13. Nge2 {[%clk 0:02:54]}  b6 {[%clk 0:02:55]} 14. Bg5 {[%clk 0:02:50]}  Qe8 {[%clk 0:02:46]} 15. Rg1 {[%clk 0:02:31]}  hxg4 {[%clk 0:02:36]} 16. hxg4 {[%clk 0:02:30]}  Nh7 {[%clk 0:02:32]} 17. Be3 {[%clk 0:02:23]}  Qe7 {[%clk 0:02:14]} 18. g5 {[%clk 0:02:20]}  Rfb8 {[%clk 0:02:11]} 19. Nb5 {[%clk 0:01:50]}  Rb7 {[%clk 0:01:47]} 20. Nec3 {[%clk 0:01:48]}  Rf8 {[%clk 0:01:34]} 21. Qh2 {[%clk 0:01:36]}  Ra8 {[%clk 0:01:18]} 22. Bh3 {[%clk 0:01:27]}  Bxh3 {[%clk 0:01:13]} 23. Qxh3 {[%clk 0:01:28]}  Nf8 {[%clk 0:00:58]} 24. Rh1 {[%clk 0:01:27]}  Qd7 {[%clk 0:00:58]} 25. Qh4 {[%clk 0:01:25]}  Qe7 {[%clk 0:00:56]} 26. Rd2 {[%clk 0:01:24]}  Rab8 {[%clk 0:00:32]} 27. Rdh2 {[%clk 0:01:14]}  Ra8 {[%clk 0:00:31]} 28. Rd2 {[%clk 0:01:03]}  Rbb8 {[%clk 0:00:30]} 29. Nd1 {[%clk 0:01:03]}  Rb7 {[%clk 0:00:31]} 30. Nf2 {[%clk 0:01:03]}  f5 {[%clk 0:00:23]} 31. gxf6 {[%clk 0:01:04]}  Qxf6 {[%clk 0:00:23]} 32. Qg3 {[%clk 0:01:04]}  Ncd7 {[%clk 0:00:03]} 33. Ng4 {[%clk 0:01:01]}  Qe7 {[%clk 0:00:04]} 34. Nh6+ {[%clk 0:00:48]}  Bxh6 {[%clk 0:00:04]} 35. Rxh6 {[%clk 0:00:46]}  Nf6 {[%clk 0:00:02]} 36. Bg5 {[%clk 0:00:41]}  Qg7 {[%clk 0:00:02]} 37. Rdh2 {[%clk 0:00:38]}  N6h7 {[%clk 0:00:02]} 38. R6h4 {[%clk 0:00:28]}  Re8 {[%clk 0:00:03]} 39. Bh6 {[%clk 0:00:28]}  Qf7 {[%clk 0:00:02]} 40. Bxf8 {[%clk 0:00:29]}  Nxf8 {[%clk 0:00:03]} 41. Rh8+ {[%clk 0:00:26]}  Kg7 {[%clk 0:00:03]} 42. Qg5 {[%clk 0:00:16]}  Qf6 {[%clk 0:00:03]} 43. Rg8+ {[%clk 0:00:15]}  Kf7 {[%clk 0:00:02]} 44. Qxf6+ {[%clk 0:00:03]}  Kxf6 {[%clk 0:00:03]} 45. Rhh8 {[%clk 0:00:03]}  Kf7 {[%clk 0:00:02]} 46. Nc3 {[%clk 0:00:04]}  Rbb8 {[%clk 0:00:02]} 47. Nxa4 {[%clk 0:00:04]}  Nd7 {[%clk 0:00:02]} 48. Rxe8 {[%clk 0:00:04]}  Rxe8 {[%clk 0:00:03]} 49. Rxe8 {[%clk 0:00:05]}  Kxe8 {[%clk 0:00:03]} 50. Nc3 {[%clk 0:00:05]}  Nc5 {[%clk 0:00:04]} 51. Nb5 {[%clk 0:00:06]}  Kd7 {[%clk 0:00:04]} 52. Kc2 {[%clk 0:00:06]}  g5 {[%clk 0:00:04]} 53. Nc3 {[%clk 0:00:06]}  Kd8 {[%clk 0:00:04]} 54. b4 {[%clk 0:00:06]}  Nd7 {[%clk 0:00:04]} 55. a4 {[%clk 0:00:07]}  Nf6 {[%clk 0:00:05]} 56. Kd3 {[%clk 0:00:05]}  g4 {[%clk 0:00:04]} 57. fxg4 {[%clk 0:00:06]}  Nxg4 {[%clk 0:00:05]} 58. c5 {[%clk 0:00:07]}  bxc5 {[%clk 0:00:06]} 59. bxc5 {[%clk 0:00:08]}  Nf2+ {[%clk 0:00:05]} 60. Kc4 {[%clk 0:00:08]}  Kc8 {[%clk 0:00:04]} 61. Kb5 {[%clk 0:00:07]}  Kb7 {[%clk 0:00:04]} 62. a5 {[%clk 0:00:07]}  Nd3 {[%clk 0:00:03]} 63. a6+ {[%clk 0:00:07]}  Kb8 {[%clk 0:00:03]} 64. cxd6 {[%clk 0:00:08]}  cxd6 {[%clk 0:00:03]} 65. Kc6 {[%clk 0:00:08]}  Ka7 {[%clk 0:00:02]} 66. Nb5+ {[%clk 0:00:04]}  Kxa6 {[%clk 0:00:03]} 67. Nxd6 {[%clk 0:00:04]}  Ka7 {[%clk 0:00:03]} 68. Nf7 {[%clk 0:00:05]}  Kb8 {[%clk 0:00:03]} 69. d6 {[%clk 0:00:05]}  Kc8 {[%clk 0:00:03]} 70. d7+ {[%clk 0:00:06]}  Kb8 {[%clk 0:00:03]} 71. d8=Q+ {[%clk 0:00:07]} 1-0


[Site "https://www.chess.com"]

[Event "Titled Tuesday Blitz June 6 Early 2023"]
[White "Molina, Roberto Junio Brito"]
[Black "Redzisz, Michal"]
[WhiteFideId "2109450"]
[BlackFideId "21816107"]
[WhiteElo "2376"]
[BlackElo "2175"]
[Result "1-0"]
[Round "9"]
[TimeControl "180+2"]
[Date "2023.06.06"]
[WhiteClock "0:00:46"]
[BlackClock "0:00:05"]
[Board "22"]

1. d4 {[%clk 0:03:00]}  Nf6 {[%clk 0:02:59]} 2. c4 {[%clk 0:03:01]}  e6 {[%clk 0:03:00]} 3. Nf3 {[%clk 0:03:01]}  Bb4+ {[%clk 0:02:58]} 4. Bd2 {[%clk 0:03:00]}  a5 {[%clk 0:02:58]} 5. g3 {[%clk 0:03:00]}  b6 {[%clk 0:02:58]} 6. Bg2 {[%clk 0:03:00]}  Bb7 {[%clk 0:02:58]} 7. O-O {[%clk 0:03:00]}  O-O {[%clk 0:02:59]} 8. Bg5 {[%clk 0:03:00]}  h6 {[%clk 0:02:56]} 9. Bxf6 {[%clk 0:03:01]}  Qxf6 {[%clk 0:02:57]} 10. Nbd2 {[%clk 0:02:59]}  Bxd2 {[%clk 0:02:49]} 11. Qxd2 {[%clk 0:02:58]}  d6 {[%clk 0:02:50]} 12. Rac1 {[%clk 0:02:55]}  Be4 {[%clk 0:02:48]} 13. Rc3 {[%clk 0:02:54]}  Nd7 {[%clk 0:02:45]} 14. Rd1 {[%clk 0:02:52]}  Qe7 {[%clk 0:02:42]} 15. Bh3 {[%clk 0:02:50]}  f5 {[%clk 0:02:03]} 16. Ne1 {[%clk 0:02:42]}  e5 {[%clk 0:01:51]} 17. dxe5 {[%clk 0:02:38]}  Nxe5 {[%clk 0:01:47]} 18. Bg2 {[%clk 0:02:36]}  Kh8 {[%clk 0:01:36]} 19. b3 {[%clk 0:02:28]}  Rae8 {[%clk 0:01:34]} 20. Re3 {[%clk 0:02:27]}  Ng4 {[%clk 0:01:33]} 21. Rc3 {[%clk 0:02:13]}  Bxg2 {[%clk 0:01:33]} 22. Nxg2 {[%clk 0:02:13]}  Qxe2 {[%clk 0:01:33]} 23. Qxe2 {[%clk 0:01:58]}  Rxe2 {[%clk 0:01:34]} 24. Nf4 {[%clk 0:01:59]}  Rxa2 {[%clk 0:00:55]} 25. Ng6+ {[%clk 0:01:58]}  Kg8 {[%clk 0:00:54]} 26. Nxf8 {[%clk 0:01:59]}  Kxf8 {[%clk 0:00:42]} 27. Rf3 {[%clk 0:01:58]}  g6 {[%clk 0:00:41]} 28. h3 {[%clk 0:01:58]}  Ne5 {[%clk 0:00:41]} 29. Re3 {[%clk 0:01:58]}  a4 {[%clk 0:00:27]} 30. f4 {[%clk 0:01:54]}  Nc6 {[%clk 0:00:27]} 31. bxa4 {[%clk 0:01:51]}  Rxa4 {[%clk 0:00:27]} 32. Re6 {[%clk 0:01:48]}  Kf7 {[%clk 0:00:27]} 33. Rde1 {[%clk 0:01:40]}  Ne5 {[%clk 0:00:27]} 34. R1xe5 {[%clk 0:01:32]}  dxe5 {[%clk 0:00:27]} 35. Rc6 {[%clk 0:01:33]}  e4 {[%clk 0:00:13]} 36. Rxc7+ {[%clk 0:01:29]}  Kf6 {[%clk 0:00:09]} 37. Rc6+ {[%clk 0:01:29]}  Kf7 {[%clk 0:00:09]} 38. g4 {[%clk 0:01:16]}  Rb4 {[%clk 0:00:06]} 39. Kf2 {[%clk 0:01:14]}  h5 {[%clk 0:00:06]} 40. gxf5 {[%clk 0:01:13]}  gxf5 {[%clk 0:00:06]} 41. Ke3 {[%clk 0:01:12]}  Rb3+ {[%clk 0:00:06]} 42. Kd4 {[%clk 0:01:12]}  Rxh3 {[%clk 0:00:05]} 43. Ke5 {[%clk 0:01:11]}  e3 {[%clk 0:00:05]} 44. Kxf5 {[%clk 0:01:10]}  e2 {[%clk 0:00:04]} 45. Re6 {[%clk 0:01:10]}  Rc3 {[%clk 0:00:04]} 46. Rxe2 {[%clk 0:01:09]}  Rxc4 {[%clk 0:00:05]} 47. Kg5 {[%clk 0:01:07]}  Rc5+ {[%clk 0:00:05]} 48. f5 {[%clk 0:01:08]}  b5 {[%clk 0:00:06]} 49. Ra2 {[%clk 0:01:05]}  h4 {[%clk 0:00:06]} 50. Ra7+ {[%clk 0:01:05]}  Kf8 {[%clk 0:00:05]} 51. Rh7 {[%clk 0:01:01]}  b4 {[%clk 0:00:04]} 52. Rxh4 {[%clk 0:00:55]}  Rb5 {[%clk 0:00:04]} 53. Kg6 {[%clk 0:00:48]}  b3 {[%clk 0:00:05]} 54. f6 {[%clk 0:00:47]}  Ke8 {[%clk 0:00:05]} 55. Rh8+ {[%clk 0:00:47]}  Kd7 {[%clk 0:00:05]} 56. f7 {[%clk 0:00:47]}  Rb6+ {[%clk 0:00:05]} 57. Kg7 {[%clk 0:00:46]} 1-0


[Site "https://www.chess.com"]

[Event "Titled Tuesday Blitz June 6 Early 2023"]
[White "Aradhya, Garg"]
[Black "Hambleton, Aman"]
[WhiteFideId "25006746"]
[BlackFideId "2606577"]
[WhiteElo "2263"]
[BlackElo "2511"]
[Result "1-0"]
[Round "9"]
[TimeControl "180+2"]
[Date "2023.06.06"]
[WhiteClock "0:00:39"]
[BlackClock "0:00:01"]
[Board "23"]

1. d4 {[%clk 0:03:00]}  Nf6 {[%clk 0:02:59]} 2. c4 {[%clk 0:03:01]}  e6 {[%clk 0:02:58]} 3. Nf3 {[%clk 0:03:01]}  b6 {[%clk 0:02:57]} 4. a3 {[%clk 0:03:00]}  Bb7 {[%clk 0:02:54]} 5. Bf4 {[%clk 0:03:00]}  Bd6 {[%clk 0:02:34]} 6. Bxd6 {[%clk 0:02:58]}  cxd6 {[%clk 0:02:35]} 7. Nc3 {[%clk 0:02:57]}  d5 {[%clk 0:02:35]} 8. e3 {[%clk 0:02:57]}  dxc4 {[%clk 0:02:32]} 9. Bxc4 {[%clk 0:02:58]}  O-O {[%clk 0:02:32]} 10. O-O {[%clk 0:02:56]}  d6 {[%clk 0:02:14]} 11. Qe2 {[%clk 0:02:56]}  a6 {[%clk 0:02:00]} 12. e4 {[%clk 0:02:47]}  d5 {[%clk 0:01:44]} 13. exd5 {[%clk 0:02:46]}  Nxd5 {[%clk 0:01:45]} 14. Rac1 {[%clk 0:02:20]}  Nxc3 {[%clk 0:01:33]} 15. bxc3 {[%clk 0:02:20]}  b5 {[%clk 0:01:07]} 16. Bb3 {[%clk 0:02:17]}  Nc6 {[%clk 0:00:51]} 17. a4 {[%clk 0:02:08]}  b4 {[%clk 0:00:48]} 18. Rfd1 {[%clk 0:01:56]}  Na5 {[%clk 0:00:14]} 19. Ba2 {[%clk 0:01:40]}  bxc3 {[%clk 0:00:09]} 20. Rxc3 {[%clk 0:01:39]}  Bd5 {[%clk 0:00:10]} 21. Bxd5 {[%clk 0:01:38]}  Qxd5 {[%clk 0:00:11]} 22. Rc5 {[%clk 0:01:39]}  Qd8 {[%clk 0:00:11]} 23. d5 {[%clk 0:01:39]}  Nb7 {[%clk 0:00:09]} 24. dxe6 {[%clk 0:01:35]}  Qxd1+ {[%clk 0:00:01]} 25. Qxd1 {[%clk 0:01:35]}  Nxc5 {[%clk 0:00:02]} 26. e7 {[%clk 0:01:26]}  Rfe8 {[%clk 0:00:01]} 27. Qd5 {[%clk 0:01:26]}  Nxa4 {[%clk 0:00:01]} 28. Ne5 {[%clk 0:01:22]}  Nb6 {[%clk 0:00:01]} 29. Qxf7+ {[%clk 0:01:21]}  Kh8 {[%clk 0:00:02]} 30. h4 {[%clk 0:01:15]}  a5 {[%clk 0:00:01]} 31. h5 {[%clk 0:01:16]}  h6 {[%clk 0:00:02]} 32. g4 {[%clk 0:00:41]}  a4 {[%clk 0:00:02]} 33. g5 {[%clk 0:00:41]}  Nc8 {[%clk 0:00:01]} 34. Qf8+ {[%clk 0:00:39]}  Kh7 {[%clk 0:00:01]} 35. g6# {[%clk 0:00:39]} 1-0


[Site "https://www.chess.com"]

[Event "Titled Tuesday Blitz June 6 Early 2023"]
[White "Petrosyan, Manuel"]
[Black "Samunenkov, Ihor"]
[WhiteFideId "13300857"]
[BlackFideId "14187086"]
[WhiteElo "2576"]
[BlackElo "2457"]
[Result "1-0"]
[Round "9"]
[TimeControl "180+2"]
[Date "2023.06.06"]
[WhiteClock "0:00:14"]
[BlackClock "0:00:06"]
[Board "24"]

1. e4 {[%clk 0:03:00]}  c6 {[%clk 0:03:00]} 2. d4 {[%clk 0:03:01]}  d5 {[%clk 0:03:00]} 3. exd5 {[%clk 0:03:01]}  cxd5 {[%clk 0:03:00]} 4. Bd3 {[%clk 0:03:02]}  Nc6 {[%clk 0:02:59]} 5. c3 {[%clk 0:03:02]}  Nf6 {[%clk 0:02:59]} 6. Bf4 {[%clk 0:03:00]}  Bg4 {[%clk 0:02:59]} 7. Qb3 {[%clk 0:02:56]}  Qd7 {[%clk 0:02:59]} 8. Nd2 {[%clk 0:02:55]}  e6 {[%clk 0:02:59]} 9. h3 {[%clk 0:02:56]}  Bh5 {[%clk 0:02:58]} 10. Ngf3 {[%clk 0:02:56]}  Bd6 {[%clk 0:02:55]} 11. Bxd6 {[%clk 0:02:55]}  Qxd6 {[%clk 0:02:55]} 12. O-O {[%clk 0:02:55]}  O-O {[%clk 0:02:55]} 13. a4 {[%clk 0:02:55]}  Ne7 {[%clk 0:02:32]} 14. Ne5 {[%clk 0:02:51]}  Bg6 {[%clk 0:02:30]} 15. Rfe1 {[%clk 0:02:44]}  Bxd3 {[%clk 0:02:04]} 16. Nxd3 {[%clk 0:02:45]}  Nf5 {[%clk 0:02:04]} 17. a5 {[%clk 0:02:41]}  Qc7 {[%clk 0:02:02]} 18. Qb4 {[%clk 0:02:24]}  Nd6 {[%clk 0:02:00]} 19. Qc5 {[%clk 0:02:20]}  Qe7 {[%clk 0:01:42]} 20. Re2 {[%clk 0:02:06]}  Rfc8 {[%clk 0:01:41]} 21. Qb4 {[%clk 0:02:06]}  Qc7 {[%clk 0:01:35]} 22. a6 {[%clk 0:01:51]}  b6 {[%clk 0:01:34]} 23. Ne5 {[%clk 0:01:50]}  Nfe4 {[%clk 0:01:31]} 24. Nxe4 {[%clk 0:01:46]}  Nxe4 {[%clk 0:01:31]} 25. Rae1 {[%clk 0:01:43]}  Nd6 {[%clk 0:01:27]} 26. Re3 {[%clk 0:01:40]}  Nf5 {[%clk 0:01:10]} 27. Rf3 {[%clk 0:01:39]}  Qd6 {[%clk 0:00:47]} 28. Qb5 {[%clk 0:01:32]}  Rc7 {[%clk 0:00:46]} 29. g3 {[%clk 0:01:13]}  Rac8 {[%clk 0:00:45]} 30. h4 {[%clk 0:01:13]}  h5 {[%clk 0:00:44]} 31. Rf4 {[%clk 0:01:12]}  Qd8 {[%clk 0:00:40]} 32. Qe2 {[%clk 0:01:07]}  g6 {[%clk 0:00:34]} 33. Nf3 {[%clk 0:00:58]}  Nd6 {[%clk 0:00:31]} 34. Ng5 {[%clk 0:00:55]}  Nf5 {[%clk 0:00:30]} 35. Kh2 {[%clk 0:00:50]}  Qd6 {[%clk 0:00:29]} 36. Nf3 {[%clk 0:00:45]}  Nh6 {[%clk 0:00:25]} 37. Ne5 {[%clk 0:00:44]}  Nf5 {[%clk 0:00:25]} 38. Rg1 {[%clk 0:00:43]}  Kf8 {[%clk 0:00:24]} 39. g4 {[%clk 0:00:43]}  hxg4 {[%clk 0:00:23]} 40. Qxg4 {[%clk 0:00:42]}  Kg7 {[%clk 0:00:10]} 41. h5 {[%clk 0:00:18]}  Rh8 {[%clk 0:00:09]} 42. Nxg6 {[%clk 0:00:19]}  Rh6 {[%clk 0:00:05]} 43. Ne5+ {[%clk 0:00:13]}  Kf8 {[%clk 0:00:05]} 44. Qg8+ {[%clk 0:00:14]}  Ke7 {[%clk 0:00:06]} 45. Qxf7+ {[%clk 0:00:14]} 1-0


[Site "https://www.chess.com"]

[Event "Titled Tuesday Blitz June 6 Early 2023"]
[White "qx4z"]
[Black "Korchmar, Vasiliy"]
[BlackFideId "24131750"]
[WhiteElo "2762"]
[BlackElo "2370"]
[Result "0-1"]
[Round "9"]
[TimeControl "180+2"]
[Date "2023.06.06"]
[WhiteClock "0:00:53"]
[BlackClock "0:00:42"]
[Board "26"]

1. d4 {[%clk 0:03:00]}  d5 {[%clk 0:02:59]} 2. Bf4 {[%clk 0:03:01]}  Nf6 {[%clk 0:03:00]} 3. e3 {[%clk 0:03:01]}  c5 {[%clk 0:03:00]} 4. Nf3 {[%clk 0:03:02]}  Nc6 {[%clk 0:03:01]} 5. Nbd2 {[%clk 0:03:02]}  cxd4 {[%clk 0:03:01]} 6. exd4 {[%clk 0:03:03]}  Qb6 {[%clk 0:03:01]} 7. Nb3 {[%clk 0:03:01]}  Bf5 {[%clk 0:03:01]} 8. a4 {[%clk 0:02:58]}  a6 {[%clk 0:03:01]} 9. a5 {[%clk 0:02:58]}  Qd8 {[%clk 0:03:01]} 10. Bd3 {[%clk 0:02:55]}  Bxd3 {[%clk 0:03:02]} 11. Qxd3 {[%clk 0:02:56]}  e6 {[%clk 0:03:02]} 12. O-O {[%clk 0:02:56]}  Be7 {[%clk 0:03:03]} 13. c3 {[%clk 0:02:48]}  O-O {[%clk 0:03:03]} 14. Rfe1 {[%clk 0:02:44]}  Rc8 {[%clk 0:03:03]} 15. Ne5 {[%clk 0:02:43]}  Nxe5 {[%clk 0:02:48]} 16. dxe5 {[%clk 0:02:42]}  Ne4 {[%clk 0:02:43]} 17. Re3 {[%clk 0:02:24]}  Nc5 {[%clk 0:02:38]} 18. Nxc5 {[%clk 0:02:24]}  Rxc5 {[%clk 0:02:39]} 19. Rh3 {[%clk 0:02:24]}  g6 {[%clk 0:02:37]} 20. Bh6 {[%clk 0:02:20]}  Re8 {[%clk 0:02:37]} 21. b4 {[%clk 0:02:07]}  Rc4 {[%clk 0:02:37]} 22. Be3 {[%clk 0:02:08]}  Qc7 {[%clk 0:02:28]} 23. Bd4 {[%clk 0:02:08]}  Rc8 {[%clk 0:02:11]} 24. g4 {[%clk 0:02:02]}  Bg5 {[%clk 0:02:06]} 25. Re1 {[%clk 0:01:35]}  Qc6 {[%clk 0:01:56]} 26. Qg3 {[%clk 0:01:32]}  Bd2 {[%clk 0:01:40]} 27. Re3 {[%clk 0:01:32]}  Rxd4 {[%clk 0:01:10]} 28. cxd4 {[%clk 0:01:08]}  Qc1+ {[%clk 0:01:10]} 29. Kg2 {[%clk 0:01:08]}  Bxe3 {[%clk 0:01:04]} 30. Qxe3 {[%clk 0:01:06]}  Qxe3 {[%clk 0:01:02]} 31. Rxe3 {[%clk 0:00:59]}  Rc4 {[%clk 0:01:03]} 32. Rb3 {[%clk 0:00:57]}  Rxd4 {[%clk 0:01:01]} 33. Kf3 {[%clk 0:00:57]}  g5 {[%clk 0:00:46]} 34. Ke3 {[%clk 0:00:55]}  Rxg4 {[%clk 0:00:43]} 35. f3 {[%clk 0:00:54]}  Rc4 {[%clk 0:00:42]} 36. Kd3 {[%clk 0:00:53]}  Kg7 {[%clk 0:00:42]} 0-1


[Site "https://www.chess.com"]